bitfinex/quotes_SOLUSD_20250907
["timestamp","ask_amount","ask_price","bid_price","bid_amount"]
[1757231277497,61.35025472,203.27,203.26,0.03]
[1757231278774,58.83770692,203.27,203.26,0.75]
[1757231279388,62.04025472,203.27,203.26,0.03]
[1757231279895,88.04025472,203.27,203.26,0.03]
[1757231282105,85.52770692,203.27,203.26,0.03]
[1757231282486,88.04025472,203.27,203.26,0.03]
[1757231284988,87.35025472,203.27,203.26,0.03]
[1757231285402,49.57025472,203.27,203.26,0.03]
[1757231285604,87.35025472,203.27,203.26,0.03]
[1757231286283,88.04025472,203.27,203.26,0.03]
[1757231288380,62.04025472,203.27,203.26,0.03]
[1757231294509,171.86559401,203.25,203.24,0.03]
[1757231294813,79.88814181,203.25,203.24,0.03]
[1757231295023,80.57814181,203.25,203.24,0.03]
[1757231295193,82.54999363,203.25,203.24,0.03]
[1757231295397,81.85999363,203.25,203.24,0.03]
[1757231295709,84.26749503,203.25,203.24,0.03]
[1757231295901,86.78004283,203.25,203.24,0.03]
[1757231296103,87.47004283,203.25,203.24,0.03]
[1757231299411,84.95749503,203.25,203.24,0.03]
[1757231299597,87.47004283,203.25,203.24,0.03]
[1757231300395,150.72636952,203.22,203.21,0.75]
[1757231300594,188.50636952,203.22,203.21,0.75]
[1757231301010,190.47841577,203.22,203.21,0.75]
[1757231301217,190.47841577,203.22,203.21,3.73420456]
[1757231301519,190.47841577,203.22,203.21,0.75]
[1757231302209,190.47841577,203.22,203.21,3.73340882]
[1757231302418,190.47841577,203.22,203.21,0.75]
[1757231303513,190.47841577,203.22,203.21,0.03]
[1757231303913,190.47841577,203.22,203.21,0.69]
[1757231304324,152.69841577,203.22,203.21,0.69]
[1757231304524,190.47841577,203.22,203.21,0.69]
[1757231306415,58.26841577,203.22,203.21,0.69]
[1757231308223,20.48841577,203.22,203.21,0.69]
[1757231308526,58.26841577,203.22,203.21,0.69]
[1757231310723,58.26841577,203.22,203.21,0.03]
[1757231314127,58.26841577,203.22,203.21,3.01432069]
[1757231316634,60.78096357,203.22,203.21,0.03]
[1757231316839,61.46096357,203.22,203.21,0.03]
[1757231318026,60.78096357,203.22,203.21,0.03]
[1757231319140,58.26841577,203.22,203.21,0.03]
[1757231320131,58.26841577,203.22,203.21,3.01598323]
[1757231321132,58.26841577,203.22,203.21,0.03]
[1757231322137,58.26841577,203.22,203.21,3.01697002]
[1757231323255,86.78096357,203.22,203.21,3.01697002]
[1757231323418,61.46096357,203.22,203.21,0.03]
[1757231324035,23.74096357,203.22,203.21,0.03]
[1757231324216,61.50096357,203.22,203.21,0.03]
[1757231325919,20.54841577,203.22,203.21,0.03]
[1757231326220,58.32841577,203.22,203.21,0.03]
[1757231326816,84.32841577,203.22,203.21,0.03]
[1757231327817,20.54841577,203.22,203.21,0.03]
[1757231328118,58.30841577,203.22,203.21,0.03]
[1757231333048,62.2364181,203.22,203.21,0.03]
[1757231333548,58.30841577,203.22,203.21,0.03]
[1757231343451,20.54841577,203.22,203.21,0.03]
[1757231343654,58.30841577,203.22,203.21,1.50391087]
[1757231346132,53.38764026,203.22,203.21,2.16391087]
[1757231346339,58.30841577,203.22,203.21,1.50391087]
[1757231348270,53.38764026,203.22,203.21,1.50391087]
[1757231348635,58.30841577,203.22,203.21,1.50391087]
[1757231351141,62.9064181,203.22,203.21,1.50391087]
[1757231351457,58.30841577,203.22,203.21,1.50391087]
[1757231351651,58.97841577,203.22,203.21,1.50391087]
[1757231352351,62.9064181,203.22,203.21,1.50391087]
[1757231356268,58.97841577,203.22,203.21,1.50391087]
[1757231356453,62.9064181,203.22,203.21,1.50391087]
[1757231359267,58.97841577,203.22,203.21,1.50391087]
[1757231360152,62.9064181,203.22,203.21,1.50391087]
[1757231360354,62.9064181,203.22,203.21,0.03]
[1757231368579,58.97841577,203.22,203.21,0.03]
[1757231368775,62.9064181,203.22,203.21,0.03]
[1757231369581,21.21841577,203.22,203.21,0.03]
[1757231369781,58.95841577,203.22,203.21,0.03]
[1757231371682,62.8864181,203.22,203.21,0.03]
[1757231375482,25.1464181,203.22,203.21,0.03]
[1757231375677,62.8864181,203.22,203.21,0.03]
[1757231376686,58.95841577,203.22,203.21,0.03]
[1757231376864,21.21841577,203.22,203.21,0.03]
[1757231377065,58.95841577,203.22,203.21,0.03]
[1757231377771,25.1464181,203.22,203.21,0.03]
[1757231377973,62.8864181,203.22,203.21,0.03]
[1757231379392,58.95841577,203.22,203.21,0.03]
[1757231379574,62.8864181,203.22,203.21,0.03]
[1757231380490,25.1464181,203.22,203.21,0.03]
[1757231380791,62.8864181,203.22,203.21,0.03]
[1757231381302,58.95841577,203.22,203.21,0.03]
[1757231385890,21.21841577,203.22,203.21,0.03]
[1757231386096,58.95841577,203.22,203.21,0.03]
[1757231386481,62.8864181,203.22,203.21,0.03]
[1757231389804,58.95841577,203.22,203.21,0.03]
[1757231389982,62.8864181,203.22,203.21,0.03]
[1757231391505,61.47292268,203.22,203.21,0.03]
[1757231397105,23.73292268,203.22,203.21,0.03]
[1757231397413,61.45292268,203.22,203.21,0.03]
[1757231397710,58.93841577,203.22,203.21,0.03]
[1757231397903,61.45292268,203.22,203.21,0.03]
[1757231398812,61.47292268,203.22,203.21,0.03]
[1757231401507,60.78292268,203.22,203.21,0.03]
[1757231401710,60.78292268,203.22,203.21,0.69]
[1757231401711,20.54841577,203.22,203.21,0.69]
[1757231401882,58.26841577,203.22,203.21,0.69]
[1757231406394,58.95841577,203.22,203.21,0.03]
[1757231406912,58.26841577,203.22,203.21,0.03]
[1757231409410,84.26841577,203.22,203.21,3.20450691]
[1757231410714,79.34764026,203.22,203.21,3.20450691]
[1757231411812,79.34764026,203.22,203.21,7.63275228]
[1757231412715,51.37559401,203.22,203.21,7.63275228]
[1757231412915,13.65559401,203.22,203.21,7.63275228]
[1757231413103,51.37559401,203.22,203.21,7.63275228]
[1757231414913,51.37559401,203.22,203.21,7.63175444]
[1757231416814,51.37559401,203.22,203.21,5.11724753]
[1757231417020,56.29636952,203.22,203.21,4.45448744]
[1757231417228,64.61812396,203.22,203.21,0.03]
[1757231420515,63.92812396,203.22,203.21,0.03]
[1757231420818,64.63812396,203.22,203.21,0.03]
[1757231421939,64.63812396,203.22,203.11,0.72]
[1757231421940,39.59559401,203.17,203.11,0.72]
[1757231422220,84.59965333,203.17,203.11,0.72]
[1757231422426,87.82416024,203.17,203.11,0.72]
[1757231422642,89.79698459,203.17,203.11,0.72]
[1757231423199,94.7189711,203.17,203.11,0.72]
[1757231426106,48.87247768,203.17,203.16,0.75]
[1757231426431,60.57247768,203.17,203.16,0.75]
[1757231427818,22.87247768,203.17,203.16,3.26450691]
[1757231428125,22.87247768,203.17,203.16,0.75]
[1757231428126,58.59965333,203.17,203.16,0.75]
[1757231428326,58.59965333,203.17,203.16,0.03]
[1757231428522,63.52163984,203.17,203.16,0.03]
[1757231429318,64.23163984,203.17,203.16,0.03]
[1757231429710,63.52163984,203.17,203.16,0.03]
[1757231429915,64.23163984,203.17,203.16,0.03]
[1757231431339,63.52163984,203.17,203.16,0.03]
[1757231433046,65.49417232,203.17,203.16,0.03]
[1757231434041,66.20417232,203.17,203.16,0.03]
[1757231434839,65.49417232,203.17,203.16,0.03]
[1757231438833,65.36651197,203.17,203.16,0.03]
[1757231439951,66.07651197,203.17,203.16,0.03]
[1757231442854,66.13651197,203.17,203.16,0.03]
[1757231443234,68.65101888,203.17,203.16,0.03]
[1757231444753,16.11010092,203.16,203.15,1e-08]
[1757231444951,21.0323297,203.16,203.15,1e-08]
[1757231445163,39.59559401,203.14,203.13,0.03]
[1757231445334,80.55010092,203.14,203.13,0.03]
[1757231445537,81.26010092,203.14,203.13,0.03]
[1757231446053,83.23341189,203.14,203.13,0.03]
[1757231446440,88.15612528,203.14,203.13,0.03]
[1757231446748,118.15612528,203.14,203.13,0.03]
[1757231453464,119.57499904,203.14,203.13,0.03]
[1757231456648,118.76499904,203.14,203.13,0.68]
[1757231456843,118.76499904,203.14,203.13,0.03]
[1757231458175,88.76499904,203.14,203.13,0.03]
[1757231459871,88.76499904,203.14,203.13,0.68]
[1757231460046,58.83161837,203.14,203.13,0.68]
[1757231460367,84.83161837,203.14,203.13,0.68]
[1757231467957,13.59559401,203.14,203.13,4.61338067]
[1757231468152,51.85559401,203.14,203.13,4.61338067]
[1757231468753,38.26,203.14,203.13,9.53633641]
[1757231469575,38.26,203.14,203.13,19.07267282]
[1757231471756,0.06,203.15,203.13,19.07267282]
[1757231471956,0.06,203.15,203.14,9.50609406]
[1757231473855,38.3,203.17,203.16,3.93338067]
[1757231474056,0.06,203.17,203.16,4.58338067]
[1757231475291,0.06,203.17,203.16,9.50560945]
[1757231486479,0.06,203.17,203.16,24.29231128]
[1757231486881,38.2,203.2,203.16,40.53126391]
[1757231487076,38.2,203.2,203.19,7.86676134]
[1757231487274,38.2,203.2,203.19,8.57676134]
[1757231488594,38.2,203.2,203.19,13.49826338]
[1757231489274,38.2,203.2,203.19,9.56488271]
[1757231489693,38.2,203.2,203.19,8.85488271]
[1757231494300,38.2,203.2,203.19,9.56488271]
[1757231497982,38.2,203.2,203.19,5.63150204]
[1757231498195,38.2,203.2,203.19,3.93338067]
[1757231499905,38.2,203.2,203.18,4.95174426]
[1757231500086,38.2,203.2,203.19,3.93338067]
[1757231500087,38.85,203.2,203.19,3.93338067]
[1757231504904,38.85,203.2,203.18,0.03]
[1757231505114,13.59559401,203.19,203.18,0.03]
[1757231505509,14.24559401,203.19,203.18,0.03]
[1757231507016,19.16709605,203.19,203.18,0.03]
[1757231507598,23.10047672,203.19,203.18,0.03]
[1757231510598,49.10047672,203.19,203.18,0.03]
[1757231512631,23.10047672,203.19,203.18,0.03]
[1757231512799,19.16709605,203.19,203.18,0.03]
[1757231513000,57.24709605,203.19,203.18,0.03]
[1757231513510,52.32559401,203.19,203.18,0.03]
[1757231513712,52.32559401,203.19,203.18,1.50422386]
[1757231514128,57.24709605,203.19,203.18,0.03]
[1757231515731,57.22709605,203.19,203.18,0.03]
[1757231520132,59.74156529,203.19,203.18,0.03]
[1757231520634,57.22709605,203.19,203.18,0.03]
[1757231524521,59.74156529,203.19,203.18,0.03]
[1757231528624,13.59559401,203.16,203.15,0.03]
[1757231528831,54.11006325,203.16,203.15,0.03]
[1757231529033,54.80006325,203.16,203.15,0.03]
[1757231530644,59.72229203,203.16,203.15,0.03]
[1757231534929,57.20782279,203.16,203.15,0.03]
[1757231535132,59.72229203,203.16,203.15,0.03]
[1757231550729,59.03229203,203.16,203.15,0.03]
[1757231556264,59.03229203,203.16,203.15,0.03]
[1757231557346,59.72229203,203.16,203.15,0.03]
[1757231563361,51.51559401,203.16,203.15,0.75]
[1757231563553,51.51559401,203.16,203.15,0.03]
[1757231563947,56.43782279,203.16,203.15,0.03]
[1757231568265,51.51559401,203.16,203.15,1.50198681]
[1757231571977,56.43782279,203.16,203.15,1.50198681]
[1757231577160,56.43782279,203.16,203.15,0.03]
[1757231577161,61.06829079,203.16,203.15,0.03]
[1757231580998,56.43782279,203.16,203.15,0.03]
[1757231581798,57.13782279,203.16,203.15,0.03]
[1757231586792,61.06829079,203.16,203.15,0.03]
[1757231587789,57.13782279,203.16,203.15,0.03]
[1757231588088,61.06829079,203.16,203.15,0.03]
[1757231588475,63.04111513,203.16,203.15,0.03]
[1757231591093,20.49064713,203.16,203.15,0.03]
[1757231591398,56.35782279,203.16,203.15,1.50903969]
[1757231592498,56.35782279,203.16,203.15,0.03]
[1757231596293,57.05782279,203.16,203.15,0.03]
[1757231597298,13.59559401,203.16,203.15,0.71]
[1757231597491,51.43559401,203.16,203.15,0.71]
[1757231604606,51.43559401,203.16,203.15,0.03]
[1757231604800,51.43559401,203.16,203.15,0.72]
[1757231605506,13.65559401,203.18,203.15,6.06492547]
[1757231605702,13.59559401,203.16,203.15,3.960468]
[1757231605910,13.59559401,203.16,203.15,5.37492462]
[1757231606295,13.59559401,203.16,203.15,6.06492462]
[1757231612729,13.59559401,203.16,203.15,2.13445662]
[1757231612935,13.59559401,203.16,203.15,6.06492462]
[1757231613517,13.59559401,203.16,203.15,1.44445662]
[1757231618027,13.59559401,203.16,203.15,2.13445662]
[1757231618644,13.59559401,203.16,203.15,1.44445662]
[1757231620844,13.59559401,203.16,203.15,1.50313481]
[1757231621638,14.30559401,203.16,203.15,1.50313481]
[1757231622618,13.59559401,203.16,203.15,1.50313481]
[1757231624247,14.30559401,203.16,203.15,1.50313481]
[1757231624634,13.59559401,203.16,203.15,1.50313481]
[1757231628029,13.59559401,203.16,203.15,1.50303294]
[1757231634831,13.59559401,203.16,203.15,2.22303294]
[1757231635232,13.59559401,203.16,203.15,6.15350094]
[1757231635432,13.59559401,203.16,203.15,4.73754406]
[1757231635960,13.59559401,203.16,203.15,4.01754406]
[1757231637245,13.59559401,203.16,203.15,1.50303294]
[1757231646967,13.59559401,203.16,203.15,4.01754406]
[1757231647169,13.59559401,203.16,203.15,1.50303294]
[1757231650163,13.59559401,203.16,203.15,4.01754406]
[1757231650865,14.30559401,203.16,203.15,4.01754406]
[1757231652857,14.30559401,203.16,203.15,1.50303294]
[1757231653668,0.06,203.18,203.15,9.66001514]
[1757231653970,0.06,203.18,203.17,2.51451112]
[1757231654142,48.64527801,203.18,203.17,1.47303294]
[1757231654345,48.64527801,203.18,203.17,4.70754406]
[1757231654766,48.64527801,203.18,203.17,17.09719035]
[1757231656466,37.88,203.18,203.17,22.01917686]
[1757231657474,37.88,203.18,203.17,17.09719035]
[1757231657770,51.47559401,203.18,203.17,16.37719035]
[1757231658075,52.18559401,203.18,203.17,3.98754406]
[1757231664777,51.47559401,203.18,203.17,3.98754406]
[1757231666264,13.65559401,203.18,203.17,3.98754406]
[1757231666575,51.45559401,203.18,203.17,3.98754406]
[1757231666963,0.06,203.18,203.17,4.70754406]
[1757231667178,37.86,203.18,203.17,19.49643268]
[1757231668980,37.86,203.18,203.17,19.52643268]
[1757231674097,37.86,203.18,203.17,17.01192156]
[1757231674397,52.16559401,203.18,203.17,1.50303294]
[1757231676271,57.08733827,203.18,203.17,1.50303294]
[1757231677368,59.60184939,203.18,203.17,1.50303294]
[1757231679471,61.60409011,203.18,203.17,1.50303294]
[1757231681184,61.60409011,203.18,203.17,1.50389894]
[1757231682387,52.16559401,203.18,203.17,1.50389894]
[1757231683492,51.45559401,203.18,203.17,1.50389894]
[1757231684277,52.16559401,203.18,203.17,1.50389894]
[1757231684480,51.45559401,203.18,203.17,1.50389894]
[1757231695295,52.14559401,203.18,203.17,1.50389894]
[1757231696999,57.06733827,203.18,203.17,1.50389894]
[1757231699708,59.03967623,203.18,203.17,1.50389894]
[1757231700205,57.06733827,203.18,203.17,1.50389894]
[1757231700506,59.06967623,203.18,203.17,1.50389894]
[1757231700804,57.06733827,203.18,203.17,1.50389894]
[1757231706898,60.99643042,203.18,203.17,1.50389894]
[1757231711797,57.06733827,203.18,203.17,1.50389894]
[1757231712574,57.06733827,203.18,203.17,1.50514637]
[1757231713193,56.37733827,203.18,203.17,1.50514637]
[1757231714306,51.45559401,203.18,203.17,2.16514637]
[1757231715390,51.43559401,203.18,203.17,2.16514637]
[1757231716003,51.43559401,203.18,203.17,1.50514637]
[1757231716990,52.12559401,203.18,203.17,1.50514637]
[1757231718111,57.04733827,203.18,203.17,1.50514637]
[1757231719215,19.26733827,203.18,203.17,1.50514637]
[1757231719386,57.04733827,203.18,203.17,1.50514637]
[1757231726489,57.02733827,203.18,203.17,1.50514637]
[1757231727210,57.02733827,203.18,203.17,0.03]
[1757231727406,57.02733827,203.18,203.17,1.44770096]
[1757231734701,57.02733827,203.18,203.17,0.03]
[1757231743215,57.02733827,203.18,203.17,1.44875484]
[1757231747137,57.02733827,203.18,203.17,0.03]
[1757231752404,60.95643042,203.18,203.17,0.03]
[1757231753428,60.95643042,203.18,203.17,1.44855286]
[1757231757411,59.54241719,203.18,203.17,1.44855286]
[1757231758732,59.54241719,203.18,203.17,0.03]
[1757231763442,16.11067293,203.15,203.14,0.03]
[1757231763621,66.04258365,203.15,203.14,0.03]
[1757231763822,66.73258365,203.15,203.14,0.03]
[1757231764138,26.0,203.13,203.12,0.03]
[1757231764334,84.77362867,203.13,203.12,0.03]
[1757231764536,85.46362867,203.13,203.12,0.03]
[1757231765415,87.4368423,203.13,203.12,0.03]
[1757231768724,91.40571339,203.13,203.12,0.03]
[1757231768938,145.83559401,203.11,203.1,0.03]
[1757231769140,53.85067293,203.11,203.1,0.03]
[1757231769340,52.02559401,203.11,203.1,0.03]
[1757231769541,54.54067293,203.11,203.1,0.03]
[1757231769944,63.95250332,203.11,203.1,0.03]
[1757231780562,63.26250332,203.11,203.1,0.03]
[1757231781633,63.94250332,203.11,203.1,0.03]
[1757231783067,61.4274244,203.11,203.1,0.03]
[1757231783240,63.94250332,203.11,203.1,0.03]
[1757231783558,63.92250332,203.11,203.1,0.03]
[1757231783763,61.4074244,203.11,203.1,0.03]
[1757231783965,63.92250332,203.11,203.1,0.03]
[1757231784164,63.24250332,203.11,203.1,0.03]
[1757231784347,63.24250332,203.11,203.1,0.71]
[1757231784551,58.75411343,203.11,203.1,0.03]
[1757231784754,60.7274244,203.11,203.1,0.71]
[1757231784963,23.0074244,203.11,203.1,0.71]
[1757231785166,58.75411343,203.11,203.1,0.71]
[1757231785970,56.23903451,203.11,203.1,0.71]
[1757231786763,58.75411343,203.11,203.1,0.71]
[1757231786950,56.23903451,203.11,203.1,0.71]
[1757231787154,58.75411343,203.11,203.1,0.71]
[1757231787763,58.81411343,203.11,203.1,0.71]
[1757231792981,58.81411343,203.11,203.1,0.03]
[1757231795548,59.49411343,203.11,203.1,0.03]
[1757231796171,56.29903451,203.11,203.1,0.03]
[1757231796348,58.81411343,203.11,203.1,0.03]
[1757231798957,59.49411343,203.11,203.1,0.03]
[1757231801667,58.81411343,203.11,203.1,0.03]
[1757231806088,58.81411343,203.11,203.1,0.03]
[1757231806282,59.49411343,203.11,203.1,0.03]
[1757231808084,59.47411343,203.11,203.1,0.03]
[1757231809874,61.44752175,203.11,203.1,0.03]
[1757231811072,58.93244283,203.11,203.1,0.03]
[1757231811274,87.44752175,203.11,203.1,0.03]
[1757231819600,84.93244283,203.11,203.1,0.03]
[1757231819899,88.86625649,203.11,203.1,0.03]
[1757231822799,60.21284817,203.11,203.1,0.03]
[1757231822971,60.21284817,203.11,203.1,1.50642328]
[1757231823578,60.21284817,203.11,203.1,2.21642328]
[1757231824081,60.21284817,203.11,203.1,0.74]
[1757231824486,60.21284817,203.11,203.1,0.03]
[1757231826098,60.21284817,203.11,203.1,1.50663886]
[1757231828100,60.21284817,203.11,203.1,2.21663886]
[1757231828482,60.21284817,203.11,203.1,1.50663886]
[1757231829202,60.21284817,203.11,203.1,2.21663886]
[1757231830011,60.21284817,203.11,203.1,2.21709427]
[1757231831904,13.65559401,203.11,203.1,2.21709427]
[1757231832206,51.35559401,203.11,203.1,2.21709427]
[1757231833210,55.28940767,203.11,203.1,2.21709427]
[1757231835523,51.35559401,203.11,203.1,2.21709427]
[1757231835896,55.28940767,203.11,203.1,2.21709427]
[1757231837086,51.35559401,203.11,203.1,2.21709427]
[1757231840810,51.35559401,203.11,203.1,2.21754139]
[1757231842597,51.35559401,203.11,203.1,1.50754139]
[1757231846435,51.33559401,203.11,203.1,2.18754139]
[1757231847221,51.33559401,203.11,203.1,1.50754139]
[1757231849218,13.65559401,203.11,203.1,1.50754139]
[1757231849420,51.33559401,203.11,203.1,1.50754139]
[1757231855821,56.25903451,203.11,203.1,1.50754139]
[1757231856027,56.93903451,203.11,203.1,1.50754139]
[1757231856216,60.87284817,203.11,203.1,1.50754139]
[1757231857818,62.84625649,203.11,203.1,1.50754139]
[1757231860225,62.84625649,203.11,203.1,0.03]
[1757231866939,13.59559401,203.08,203.07,0.03]
[1757231867136,51.27559401,203.08,203.07,0.71]
[1757231867829,55.20940767,203.08,203.07,0.71]
[1757231868052,13.59559401,203.08,203.07,0.71]
[1757231868339,51.27559401,203.08,203.07,2.18905778]
[1757231872229,56.19976182,203.08,203.07,1.50905778]
[1757231872627,56.19976182,203.08,203.07,2.20905778]
[1757231877151,56.19976182,203.08,203.07,2.18944494]
[1757231880560,56.19976182,203.08,203.07,1.48944494]
[1757231882258,56.87976182,203.08,203.07,1.48944494]
[1757231882435,59.39685061,203.08,203.07,0.03]
[1757231885262,56.87976182,203.08,203.07,0.03]
[1757231889350,56.19976182,203.08,203.07,0.03]
[1757231890445,56.87976182,203.08,203.07,0.03]
[1757231892251,59.39685061,203.08,203.07,0.03]
[1757231892444,21.71685061,203.08,203.07,0.03]
[1757231892641,59.37685061,203.08,203.07,0.03]
[1757231892842,56.85976182,203.08,203.07,0.03]
[1757231894362,59.37685061,203.08,203.07,0.03]
[1757231894854,56.17976182,203.08,203.07,0.03]
[1757231895056,61.35074584,203.08,203.07,0.03]
[1757231895677,61.35074584,203.08,203.07,1.50931323]
[1757231896468,61.35074584,203.08,203.07,0.03]
[1757231898357,59.37685061,203.08,203.07,0.03]
[1757231898544,61.35045367,203.08,203.07,1.50956205]
[1757231898761,59.37685061,203.08,203.07,1.50956205]
[1757231899154,58.69685061,203.08,203.07,1.50956205]
[1757231899363,60.67045367,203.08,203.07,1.50956205]
[1757231899556,60.67045367,203.08,203.07,0.03]
[1757231900056,58.69685061,203.08,203.07,0.03]
[1757231900372,59.41685061,203.08,203.07,0.03]
[1757231906885,18.51976182,203.08,203.07,0.03]
[1757231907080,58.69685061,203.08,203.07,0.03]
[1757231907480,59.41685061,203.08,203.07,0.03]
[1757231908482,56.17976182,203.08,203.07,0.03]
[1757231908666,58.69685061,203.08,203.07,0.03]
[1757231909154,56.17976182,203.08,203.07,0.03]
[1757231910260,56.89976182,203.08,203.07,0.03]
[1757231910960,59.41685061,203.08,203.07,0.03]
[1757231911562,58.69685061,203.08,203.07,0.03]
[1757231914391,59.41685061,203.08,203.07,0.03]
[1757231916493,56.89976182,203.08,203.07,0.03]
[1757231916795,59.41685061,203.08,203.07,0.03]
[1757231918310,21.75685061,203.08,203.07,0.03]
[1757231918503,58.69685061,203.08,203.07,0.03]
[1757231918708,59.41685061,203.08,203.07,0.03]
[1757231920020,56.89976182,203.08,203.07,0.03]
[1757231920202,59.41685061,203.08,203.07,0.03]
[1757231922614,61.39045367,203.08,203.07,0.03]
[1757231929121,58.87336488,203.08,203.07,0.03]
[1757231929309,56.89976182,203.08,203.07,0.03]
[1757231937907,59.41685061,203.08,203.07,0.03]
[1757231938731,13.59559401,203.08,203.07,0.03]
[1757231939031,51.25559401,203.08,203.07,0.75]
[1757231939738,13.59559401,203.08,203.07,0.75]
[1757231939930,51.25559401,203.08,203.07,0.75]
[1757231941203,0.06,203.09,203.07,4.65904605]
[1757231941421,0.06,203.09,203.08,4.62904605]
[1757231941623,13.65559401,203.09,203.08,4.62904605]
[1757231941818,51.31559401,203.09,203.08,4.62904605]
[1757231942228,13.65559401,203.09,203.08,4.62904605]
[1757231942433,51.31559401,203.09,203.08,4.62904605]
[1757231943008,13.65559401,203.09,203.08,9.55365017]
[1757231943212,51.31559401,203.09,203.08,9.55365017]
[1757231943413,51.31559401,203.09,203.08,10.96714729]
[1757231944225,0.06,203.09,203.08,15.8913151]
[1757231944526,37.72,203.09,203.08,15.8913151]
[1757231947827,37.72,203.09,203.08,10.96714729]
[1757231958640,37.72,203.09,203.08,10.96943171]
[1757231959950,0.06,203.09,203.08,10.96943171]
[1757231960246,37.7,203.09,203.08,10.96943171]
[1757231961235,37.7,203.09,203.08,10.99943171]
[1757231963248,37.7,203.09,203.08,15.92359952]
[1757231964034,37.7,203.09,203.08,11.99301361]
[1757231964236,37.7,203.09,203.08,15.92359952]
[1757231975049,37.7,203.09,203.08,11.99301361]
[1757231975242,37.7,203.09,203.08,15.92359952]
[1757231975755,0.06,203.09,203.08,15.92359952]
[1757231976645,0.06,203.11,203.1,26.0]
[1757231976950,0.06,203.11,203.1,35.9754135]
[1757231977537,0.06,203.11,203.1,50.76648955]
[1757231977951,0.06,203.11,203.1,55.69017246]
[1757231984165,0.06,203.11,203.1,55.75525208]
[1757231988539,0.06,203.11,203.1,93.86762037]
[1757231988755,0.06,203.11,203.1,93.37525208]
[1757231992472,0.06,203.11,203.1,93.86762037]
[1757231993473,0.06,203.12,203.1,93.86762037]
[1757231993769,0.06,203.12,203.11,26.09990721]
[1757231994256,0.06,203.12,203.11,28.07166183]
[1757231995172,0.06,203.12,203.11,31.93408307]
[1757231995468,0.06,203.12,203.11,32.99510233]
[1757231995872,0.06,203.12,203.11,70.61510233]
[1757231996251,0.06,203.14,203.13,46.0]
[1757231996454,0.06,203.14,203.13,89.50220278]
[1757231996768,0.06,203.14,203.13,90.21220278]
[1757231997067,0.06,203.14,203.13,104.9989046]
[1757231997273,0.06,203.14,203.13,104.50660903]
[1757231997774,0.06,203.14,203.13,109.42956477]
[1757231998569,0.06,203.14,203.13,109.42713973]
[1757232000177,0.06,203.14,203.13,107.97024347]
[1757232000684,0.06,203.14,203.13,109.42700313]
[1757232001759,0.06,203.14,203.13,109.40700313]
[1757232001961,0.06,203.14,203.13,66.88404739]
[1757232002276,0.06,203.14,203.13,109.8992987]
[1757232002468,0.06,203.14,203.13,109.40700313]
[1757232003565,0.06,203.14,203.13,107.98936108]
[1757232006772,0.06,203.16,203.13,107.98936108]
[1757232006964,0.06,203.18,203.17,46.0]
[1757232007165,0.74,203.21,203.17,98.11367761]
[1757232007482,0.74,203.21,203.19,12.5647193]
[1757232007669,0.74,203.21,203.19,51.62147896]
[1757232008063,0.74,203.21,203.19,52.11362916]
[1757232008484,0.74,203.21,203.19,54.08460652]
[1757232008783,0.06,203.21,203.19,54.79460652]
[1757232009182,0.06,203.21,203.19,59.79678402]
[1757232009754,0.06,203.21,203.19,64.71828606]
[1757232011776,0.06,203.21,203.2,14.73147896]
[1757232012268,0.06,203.21,203.2,16.70245632]
[1757232012785,0.06,203.21,203.2,4.13773702]
[1757232012966,0.06,203.23,203.2,4.13773702]
[1757232012967,0.06,203.23,203.21,22.51294386]
[1757232013280,0.06,203.23,203.22,1.45675966]
[1757232013480,0.06,203.23,203.22,67.60970352]
[1757232013687,0.06,203.23,203.22,31.94048666]
[1757232013862,0.06,203.23,203.22,69.58048666]
[1757232014185,0.74,203.23,203.22,69.58048666]
[1757232014361,0.74,203.23,203.22,67.0675428]
[1757232014760,0.06,203.23,203.22,72.69831831]